[Event "34th MPL National U14G-ch 2022"]
[Site "Ahmedabad"]
[Date "2022.05.14"]
[Round "11.1"]
[White "Mrittika Mallick"]
[Black "Anupam M Sreekumar"]
[Result "1/2-1/2"]
[ECO "C54"]
[WhiteElo "1982"]
[BlackElo "1673"]
[Annotator "TA"]
[PlyCount "63"]
[EventDate "2022.05.09"]
[EventType "swiss"]
[EventCountry "IND"]
[SourceTitle "playchess.com"]
[Source "ChessBase"]
[SourceQuality "1"]
[TimeControl "5400+30"]

{[%evp 11,63,6,23,20,22,19,20,0,16,0,0,-14,0,0,3,18,25,0,0,0,28,0,0,-11,-17,-21,-2,-25,0,0,0,0,0,-6,0,-29,-21,-30,-24,-31,0,-23,0,0,0,-29,-9,0,0,0,0,0,0,0]} 1. e4 {[%emt 0:00:37]} e5 {[%emt 0:00:29]} 2. Nf3 {[%emt 0:00:37]} Nc6 {[%emt 0:00:12]} 3. Bc4 {[%emt 0:00:21]} Bc5 {[%emt 0:00:12]} 4. c3 {[%emt 0:00:28]} Nf6 {[%emt 0:00:18]} 5. d3 {[%emt 0:01:05]} d6 {[%emt 0:00:50]} 6. Bb3 {[%emt 0:00:59]} a6 {[%emt 0:00:59]} 7. h3 {[%emt 0:01:07] C54: Giuoco Piano: 4 c3 Nf6, main lines with 5 d4 and 5 d3.} h6 {[%emt 0:00:32]} 8. Nbd2 {[%emt 0:00:48]} O-O {[%emt 0:01:05]} 9. Nf1 {[%emt 0:01:32]} Be6 {[%emt 0:01:51]} 10. Ng3 {[%emt 0:02:50]} d5 {[%emt 0:01:20]} 11. Qe2 {[%emt 0:04:43]} Re8 {[%emt 0:01:22]} 12. O-O {[%emt 0:03:03]} Bf8 {[%emt 0:02:20]} 13. Rd1 {[%emt 0:06:39]} Qe7 {[%emt 0:04:52]} 14. Be3 {[%emt 0:07:24]} Rad8 {[%emt 0:01:02]} 15. Bc2 {[%emt 0:05:27] [#]} Bc8 $146 {[%emt 0:05:54]} ({Predecessor:} 15... g6 16. a4 a5 17. d4 Nxe4 18. Nxe4 dxe4 19. Nxe5 Nxe5 20. dxe5 Bd5 21. Bf4 Qe6 22. Bxe4 Bxe4 23. Qxe4 {1-0 (48) Mamedov,R (2660)-Aronian,L (2801) Moscow 2010}) 16. Nh2 {[%emt 0:08:16]} Qe6 {[%emt 0:07:09]} 17. Nf5 {[%emt 0:06:32]} Ne7 {[%emt 0:01:31]} 18. Nxe7+ {[%emt 0:03:46]} Bxe7 {[%emt 0:01:47]} 19. Nf1 {[%emt 0:04:45]} Qc6 {[%emt 0:07:57][%cal Rd5e4]} 20. Ng3 {[%emt 0:03:37]} dxe4 {[%emt 0:03:38]} 21. dxe4 {[%emt 0:00:53]} Be6 {[%emt 0:01:00]} 22. Rxd8 {[%emt 0:15:36]} Rxd8 {[%emt 0:00:21]} 23. Bd3 {[%emt 0:00:55]} Bc5 {[%emt 0:04:07]} 24. Bxc5 {[%emt 0:03:38]} Qxc5 {[%emt 0:00:06]} 25. a3 {[%emt 0:01:23]} Nd7 {[%emt 0:21:45][%cal Bf6d7,Bd7f8,Bf8g6][%mdl 32]} 26. Nf1 {[%emt 0:02:55]} Nf8 {[%emt 0:03:03]} 27. Rd1 {[%emt 0:02:40]} Ng6 {[%emt 0:06:59]} 28. Qe3 {[%emt 0:00:43]} Qxe3 {[%emt 0:01:51]} 29. Nxe3 {[%emt 0:00:16] The position is equal.} Bb3 {[%emt 0:03:41]} 30. Bc2 {[%emt 0:00:07]} Rxd1+ {[%emt 0:00:08]} 31. Bxd1 {[%emt 0:00:03]} Bxd1 {[%emt 0:00:11]} 32. Nxd1 {[%emt 0:00:02] Not much happened in this game.  Weighted Error Value: White=0.10 (very precise) /Black=0.08 (flawless)} 1/2-1/2

[Event "34th MPL National U14G-ch 2022"]
[Site "Ahmedabad"]
[Date "2022.05.14"]
[Round "11.2"]
[White "Shubhi Gupta"]
[Black "Roy Aanya"]
[Result "1/2-1/2"]
[ECO "E61"]
[WhiteElo "1613"]
[BlackElo "1560"]
[Annotator "NA RC COMBH"]
[PlyCount "77"]
[EventDate "2022.05.09"]
[EventType "swiss"]
[EventCountry "IND"]
[SourceTitle "playchess.com"]
[Source "ChessBase"]
[SourceQuality "1"]
[TimeControl "5400+30"]

1. d4 {[%emt 0:01:37]} Nf6 {[%emt 0:00:05]} 2. Nf3 {[%emt 0:00:25]} c5 {[%emt 0:00:07]} 3. c4 {[%emt 0:00:19]} g6 {[%emt 0:00:06]} 4. Nc3 {[%emt 0:00:26]} Bg7 {[%emt 0:00:27]} 5. Bg5 {[%emt 0:00:36]} O-O {[%emt 0:00:48]} 6. e3 {[%emt 0:00:20]} cxd4 {[%emt 0:01:43]} 7. exd4 {[%emt 0:00:17]} h6 {[%emt 0:00:55]} 8. Bh4 {[%emt 0:00:19]} g5 {[%emt 0:01:18]} 9. Bg3 {[%emt 0:00:27]} d5 {[%emt 0:02:10]} 10. Be2 {[%emt 0:03:31]} Nc6 {[%emt 0:02:15]} 11. h3 {[%emt 0:01:30]} e6 {[%emt 0:18:01]} 12. O-O {[%emt 0:03:49]} dxc4 {[%emt 0:01:04]} 13. Bxc4 {[%emt 0:00:37]} Nh5 {[%emt 0:03:25]} 14. Be5 {[%emt 0:05:26]} Nxe5 {[%emt 0:00:51]} 15. dxe5 {[%emt 0:00:48]} Qc7 {[%emt 0:03:36]} 16. Qe2 {[%emt 0:02:24]} Nf4 {[%emt 0:01:44]} 17. Qe4 {[%emt 0:00:33]} Bd7 {[%emt 0:02:16]} 18. Bb5 {[%emt 0:03:07]} Bxb5 {[%emt 0:02:54]} 19. Nxb5 {[%emt 0:00:02]} Qc6 {[%emt 0:00:40]} 20. Qxc6 {[%emt 0:08:52]} bxc6 {[%emt 0:00:04]} 21. Nd6 {[%emt 0:00:27]} Nd3 {[%emt 0:00:44]} 22. Nc4 {[%emt 0:01:02]} Rfd8 {[%emt 0:02:39]} 23. Rfd1 {[%emt 0:01:11]} Kf8 {[%emt 0:03:11]} 24. Rd2 {[%emt 0:03:01]} Ke7 {[%emt 0:01:01]} 25. Rad1 {[%emt 0:00:28]} Nf4 {[%emt 0:04:13]} 26. Rd6 {[%emt 0:02:27]} Rac8 {[%emt 0:04:27]} 27. g3 {[%emt 0:04:56]} Nxh3+ {[%emt 0:07:52]} 28. Kf1 {[%emt 0:01:19]} g4 {[%emt 0:03:49]} 29. Rxd8 Rxd8 {[%emt 0:00:30]} 30. Nd4 Rc8 {[%emt 0:00:30]} 31. Nd6 Rc7 {[%emt 0:00:30]} 32. N4f5+ {[%emt 0:02:56]} exf5 {[%emt 0:00:30]} 33. Nxf5+ {[%emt 0:00:30]} Ke6 {[%emt 0:00:30]} 34. Nxg7+ {[%emt 0:00:30]} Kxe5 {[%emt 0:00:30]} 35. Ne8 {[%emt 0:00:30]} Rb7 {[%emt 0:00:30]} 36. Nd6 {[%emt 0:00:30]} Re7 {[%emt 0:00:30]} 37. Nc4+ {[%emt 0:00:30]} Kf6 {[%emt 0:00:30]} 38. Rd6+ {[%emt 0:00:30]} Re6 {[%emt 0:00:30]} 39. Rd7 {[%emt 0:00:30]} 1/2-1/2

[Event "34th MPL National U14G-ch 2022"]
[Site "Ahmedabad"]
[Date "2022.05.14"]
[Round "11.3"]
[White "Pragnya H G"]
[Black "Bhat Sannidhi Ramakrishna"]
[Result "1-0"]
[ECO "B00"]
[WhiteElo "1605"]
[BlackElo "1373"]
[Annotator "NA RC COMBH"]
[PlyCount "55"]
[EventDate "2022.05.09"]
[EventType "swiss"]
[EventCountry "IND"]
[SourceTitle "playchess.com"]
[Source "ChessBase"]
[SourceQuality "1"]
[TimeControl "5400+30"]

1. e4 {[%emt 0:02:11]} Nc6 {[%emt 0:00:18]} 2. d4 {[%emt 0:01:45]} d6 {[%emt 0:00:17]} 3. f4 {[%emt 0:00:31]} e5 {[%emt 0:05:45]} 4. d5 {[%emt 0:02:12]} Nb8 {[%emt 0:05:14]} 5. Nc3 {[%emt 0:02:59]} Nf6 {[%emt 0:02:30]} 6. Nf3 {[%emt 0:01:28]} exf4 {[%emt 0:03:00]} 7. Bxf4 {[%emt 0:00:14]} g6 {[%emt 0:04:42]} 8. Qd2 {[%emt 0:03:21]} Bg7 {[%emt 0:00:42]} 9. Bd3 {[%emt 0:01:18]} Nbd7 {[%emt 0:02:24]} 10. Bh6 {[%emt 0:01:45]} O-O {[%emt 0:02:00]} 11. Bxg7 {[%emt 0:00:31]} Kxg7 {[%emt 0:00:02]} 12. h3 {[%emt 0:01:12]} Re8 {[%emt 0:02:55]} 13. O-O-O {[%emt 0:00:31]} Nc5 {[%emt 0:02:10]} 14. Rde1 {[%emt 0:03:04]} Bd7 {[%emt 0:10:47]} 15. Qf2 {[%emt 0:01:23]} Nxd3+ {[%emt 0:01:52]} 16. cxd3 {[%emt 0:00:05]} c6 {[%emt 0:01:15]} 17. dxc6 {[%emt 0:02:50]} Bxc6 {[%emt 0:14:31]} 18. g4 {[%emt 0:05:02]} b5 {[%emt 0:04:56]} 19. Rhf1 {[%emt 0:02:33]} h6 {[%emt 0:05:29]} 20. Nd4 {[%emt 0:04:36]} Rc8 {[%emt 0:04:53]} 21. Kb1 {[%emt 0:01:05]} Rf8 22. Nxc6 {[%emt 0:00:30]} Rxc6 23. Qd4 {[%emt 0:00:30]} Re8 24. Nd5 {[%emt 0:00:30]} Re6 25. Rf2 {[%emt 0:00:30]} Qa5 26. Ref1 {[%emt 0:00:30]} Ra6 27. a3 {[%emt 0:00:30]} b4 28. Rxf6 {[%emt 0:00:30]} 1-0

[Event "34th MPL National U14G-ch 2022"]
[Site "Ahmedabad"]
[Date "2022.05.14"]
[Round "11.4"]
[White "Sanikommu Manasvi"]
[Black "Rout Yashita"]
[Result "1/2-1/2"]
[ECO "C96"]
[WhiteElo "1399"]
[BlackElo "1718"]
[Annotator "NA RC COMBH"]
[PlyCount "160"]
[EventDate "2022.05.09"]
[EventType "swiss"]
[EventCountry "IND"]
[SourceTitle "playchess.com"]
[Source "ChessBase"]
[SourceQuality "1"]
[TimeControl "5400+30"]

1. e4 {[%emt 0:00:21]} e5 {[%emt 0:00:46]} 2. Nf3 {[%emt 0:00:11]} Nc6 {[%emt 0:00:22]} 3. Bb5 {[%emt 0:00:30]} a6 {[%emt 0:00:19]} 4. Ba4 {[%emt 0:00:10]} Nf6 {[%emt 0:00:35]} 5. O-O {[%emt 0:00:19]} Be7 {[%emt 0:00:30]} 6. Re1 {[%emt 0:00:44]} b5 {[%emt 0:00:26]} 7. Bb3 {[%emt 0:00:10]} d6 {[%emt 0:00:27]} 8. c3 {[%emt 0:00:24]} O-O {[%emt 0:00:35]} 9. h3 {[%emt 0:01:14]} Na5 {[%emt 0:00:25]} 10. Bc2 {[%emt 0:00:29]} c5 {[%emt 0:00:36]} 11. d4 {[%emt 0:00:51]} Nd7 {[%emt 0:00:51]} 12. d5 {[%emt 0:01:42]} Nb6 {[%emt 0:00:46]} 13. Nbd2 {[%emt 0:00:51]} Nb7 {[%emt 0:01:40]} 14. b3 {[%emt 0:03:33]} Bf6 {[%emt 0:01:56]} 15. a4 {[%emt 0:10:12]} bxa4 {[%emt 0:08:23]} 16. bxa4 {[%emt 0:01:12]} Na5 {[%emt 0:00:34]} 17. Nb3 {[%emt 0:06:34]} Nxb3 {[%emt 0:09:33]} 18. Bxb3 {[%emt 0:03:20]} c4 {[%emt 0:00:18]} 19. Ba2 {[%emt 0:04:32]} a5 {[%emt 0:01:32]} 20. Be3 {[%emt 0:04:28]} Ba6 {[%emt 0:01:00]} 21. Rb1 {[%emt 0:05:23]} Nd7 {[%emt 0:02:09]} 22. Qe2 {[%emt 0:03:42]} Qc7 {[%emt 0:02:34]} 23. Nd2 {[%emt 0:03:33]} Rfc8 {[%emt 0:06:19]} 24. Rb2 {[%emt 0:07:21]} Nc5 {[%emt 0:08:13]} 25. Bxc4 {[%emt 0:03:13]} Nxa4 {[%emt 0:01:38]} 26. Bxa6 {[%emt 0:01:11]} Nxb2 {[%emt 0:00:39]} 27. Bxc8 {[%emt 0:00:10]} Rxc8 {[%emt 0:02:03]} 28. c4 {[%emt 0:01:53]} a4 {[%emt 0:01:24]} 29. Ra1 {[%emt 0:05:51]} Qb7 {[%emt 0:08:40]} 30. c5 {[%emt 0:02:32]} dxc5 {[%emt 0:12:26]} 31. Nc4 {[%emt 0:01:00]} Qa6 {[%emt 0:06:40]} 32. Qxb2 {[%emt 0:00:44]} Qxc4 {[%emt 0:00:05]} 33. Qb7 {[%emt 0:01:07]} Rd8 {[%emt 0:00:07]} 34. d6 {[%emt 0:06:34]} Rxd6 {[%emt 0:03:04]} 35. Rc1 {[%emt 0:01:26]} Qb4 {[%emt 0:01:11]} 36. Qc8+ {[%emt 0:01:07]} Rd8 {[%emt 0:00:05]} 37. Qxc5 {[%emt 0:01:44]} Qxe4 {[%emt 0:01:08]} 38. Rc4 {[%emt 0:02:50]} Qd3 {[%emt 0:00:52]} 39. Kh2 {[%emt 0:01:37]} a3 {[%emt 0:04:41]} 40. Rc3 {[%emt 0:01:25]} Qd7 {[%emt 0:00:33]} 41. Qxa3 {[%emt 0:00:58]} e4 {[%emt 0:00:28]} 42. Rc1 {[%emt 0:00:55]} Be5+ {[%emt 0:00:20]} 43. g3 {[%emt 0:00:28]} h5 {[%emt 0:01:07]} 44. Qc5 {[%emt 0:01:57]} Bd4 {[%emt 0:05:41]} 45. Bxd4 {[%emt 0:01:37]} Qxd4 {[%emt 0:00:06]} 46. Qxd4 {[%emt 0:00:05]} Rxd4 {[%emt 0:00:04]} 47. Rc8+ {[%emt 0:00:17]} Kh7 {[%emt 0:00:04]} 48. Kg2 {[%emt 0:00:34]} Rd2 {[%emt 0:00:27]} 49. Re8 {[%emt 0:00:37]} Rd4 {[%emt 0:10:38]} 50. h4 {[%emt 0:00:56]} Kg6 {[%emt 0:00:00]} 51. Kf1 {[%emt 0:01:25]} Kf5 {[%emt 0:00:00]} 52. Ra8 {[%emt 0:00:53]} f6 {[%emt 0:00:00]} 53. Ra7 {[%emt 0:03:00]} g5 {[%emt 0:00:00]} 54. hxg5 {[%emt 0:00:58]} fxg5 {[%emt 0:00:00]} 55. Ra5+ {[%emt 0:00:31]} Kg4 {[%emt 0:00:00]} 56. Kg2 {[%emt 0:00:13]} Rd2 {[%emt 0:00:00]} 57. Ra4 {[%emt 0:00:13]} Re2 {[%emt 0:00:00]} 58. Rb4 {[%emt 0:01:55]} Re1 {[%emt 0:00:00]} 59. f3+ {[%emt 0:00:26]} Kf5 {[%emt 0:00:00]} 60. Rb5+ {[%emt 0:00:13]} Kf6 {[%emt 0:00:00]} 61. fxe4 {[%emt 0:00:23]} Rxe4 {[%emt 0:00:00]} 62. Kf3 {[%emt 0:00:34]} Re6 {[%emt 0:00:00]} 63. Ra5 {[%emt 0:00:51]} Rb6 {[%emt 0:00:00]} 64. Ra8 {[%emt 0:01:46]} Rb3+ {[%emt 0:00:00]} 65. Kf2 {[%emt 0:00:19]} Kf5 {[%emt 0:00:00]} 66. Ra4 {[%emt 0:00:30]} Rc3 {[%emt 0:00:37]} 67. Kg2 {[%emt 0:00:40]} Re3 {[%emt 0:00:10]} 68. Ra5+ {[%emt 0:01:46]} Re5 {[%emt 0:00:06]} 69. g4+ {[%emt 0:01:19]} hxg4 {[%emt 0:00:19]} 70. Ra2 {[%emt 0:00:24]} Re3 {[%emt 0:00:32]} 71. Ra5+ {[%emt 0:00:26]} Kg6 {[%emt 0:00:17]} 72. Ra8 {[%emt 0:00:27]} g3 {[%emt 0:00:43]} 73. Ra6+ {[%emt 0:00:59]} Kh5 {[%emt 0:00:05]} 74. Ra4 {[%emt 0:00:04]} Rb3 {[%emt 0:00:26]} 75. Rc4 {[%emt 0:00:25]} Ra3 {[%emt 0:01:20]} 76. Rb4 {[%emt 0:00:09]} g4 {[%emt 0:03:08]} 77. Rb8 {[%emt 0:00:17]} Ra2+ {[%emt 0:00:14]} 78. Kxg3 {[%emt 0:00:08]} Ra3+ {[%emt 0:00:18]} 79. Kg2 {[%emt 0:00:08]} Kh4 {[%emt 0:00:51]} 80. Rh8+ {[%emt 0:00:17]} Kg5 {[%emt 0:00:22]} 1/2-1/2

[Event "34th MPL National U14G-ch 2022"]
[Site "Ahmedabad"]
[Date "2022.05.14"]
[Round "11.5"]
[White "Arshiya Das"]
[Black "Sneha Halder"]
[Result "*"]
[ECO "C00"]
[WhiteElo "1456"]
[BlackElo "1557"]
[Annotator "NA RC COMBH"]
[PlyCount "104"]
[EventDate "2022.05.09"]
[EventType "swiss"]
[EventCountry "IND"]
[SourceTitle "playchess.com"]
[Source "ChessBase"]
[SourceQuality "1"]
[TimeControl "5400+30"]

1. e4 {[%emt 0:00:13]} e6 {[%emt 0:02:44]} 2. d3 {[%emt 0:00:09]} d5 {[%emt 0:00:07]} 3. Nd2 {[%emt 0:00:03]} Nf6 {[%emt 0:00:20]} 4. Ngf3 {[%emt 0:00:07]} Bc5 {[%emt 0:01:06]} 5. e5 {[%emt 0:02:43]} Ng4 {[%emt 0:02:40]} 6. d4 {[%emt 0:00:52]} Bb6 {[%emt 0:01:53]} 7. Nb3 {[%emt 0:02:52]} a5 {[%emt 0:01:35]} 8. h3 {[%emt 0:02:24]} Nh6 {[%emt 0:04:14]} 9. Bxh6 {[%emt 0:00:55]} gxh6 {[%emt 0:00:11]} 10. a4 {[%emt 0:02:05]} Nd7 {[%emt 0:00:10]} 11. Qd2 {[%emt 0:00:47]} c5 {[%emt 0:00:50]} 12. Qxh6 {[%emt 0:01:44]} cxd4 {[%emt 0:00:31]} 13. Qg7 {[%emt 0:01:10]} Rf8 {[%emt 0:00:06]} 14. Ng5 {[%emt 0:01:32]} Qc7 {[%emt 0:00:35]} 15. Nxh7 {[%emt 0:01:00]} Qxe5+ {[%emt 0:06:08]} 16. Qxe5 {[%emt 0:00:10]} Nxe5 {[%emt 0:00:05]} 17. Bb5+ {[%emt 0:00:11]} Bd7 {[%emt 0:00:40]} 18. Bxd7+ {[%emt 0:00:32]} Kxd7 {[%emt 0:00:06]} 19. Nxf8+ {[%emt 0:00:04]} Rxf8 {[%emt 0:00:06]} 20. Rd1 {[%emt 0:00:26]} Nc4 {[%emt 0:00:43]} 21. Nd2 {[%emt 0:01:04]} Nxb2 {[%emt 0:00:17]} 22. Rb1 {[%emt 0:00:06]} Nxa4 {[%emt 0:00:01]} 23. h4 {[%emt 0:00:35]} Kc7 {[%emt 0:00:25]} 24. h5 {[%emt 0:00:11]} Nc3 {[%emt 0:00:03]} 25. Ra1 {[%emt 0:00:11]} a4 {[%emt 0:00:15]} 26. Nb1 {[%emt 0:01:20]} Ba5 {[%emt 0:00:13]} 27. Kf1 {[%emt 0:00:08]} b5 {[%emt 0:00:13]} 28. h6 {[%emt 0:00:22]} Ne4 {[%emt 0:01:44]} 29. g3 {[%emt 0:09:55]} Rh8 {[%emt 0:02:39]} 30. Kg2 {[%emt 0:02:14]} Bc3 {[%emt 0:02:26]} 31. Ra2 {[%emt 0:02:34]} Nd2 {[%emt 0:03:00]} 32. Nxd2 {[%emt 0:00:35]} Bxd2 {[%emt 0:00:04]} 33. c4 {[%emt 0:01:15]} dxc3 {[%emt 0:03:55]} 34. h7 {[%emt 0:00:44]} Kb6 {[%emt 0:00:38]} 35. Kf3 {[%emt 0:00:08]} Ka5 {[%emt 0:00:14]} 36. Ke2 {[%emt 0:00:08]} Bg5 {[%emt 0:00:57]} 37. Kd3 {[%emt 0:00:22]} b4 {[%emt 0:00:10]} 38. Rha1 {[%emt 0:00:58]} a3 {[%emt 0:00:07]} 39. Rh1 {[%emt 0:03:37]} Ka4 {[%emt 0:00:14]} 40. Raa1 {[%emt 0:00:13]} Bf6 {[%emt 0:00:07]} 41. Rh6 {[%emt 0:00:20]} Bg7 {[%emt 0:00:05]} 42. Rh4 {[%emt 0:00:08]} d4 {[%emt 0:01:18]} 43. Rah1 {[%emt 0:01:36]} a2 {[%emt 0:00:21]} 44. Kc4 {[%emt 0:01:28]} Rc8+ {[%emt 0:00:14]} 45. Kd3 {[%emt 0:00:05]} b3 {[%emt 0:01:45]} 46. Rf4 {[%emt 0:01:50]} b2 {[%emt 0:00:05]} 47. h8=Q {[%emt 0:01:11]} b1=Q+ {[%emt 0:00:16]} 48. Ke2 {[%emt 0:00:28]} Bxh8 {[%emt 0:00:09]} 49. Rxh8 {[%emt 0:00:06]} Rxh8 {[%emt 0:00:10]} 50. Rxd4+ {[%emt 0:00:03]} Kb3 {[%emt 0:00:09]} 51. Rd7 {[%emt 0:00:05]} Qe4+ {[%emt 0:00:10]} 52. Kf1 {[%emt 0:00:07]} Rh1# {[%emt 0:00:05]} *

[Event "34th MPL National U14G-ch 2022"]
[Site "Ahmedabad"]
[Date "2022.05.14"]
[Round "11.6"]
[White "Sachi Jain"]
[Black "Shriyana S Mallya"]
[Result "0-1"]
[ECO "C44"]
[WhiteElo "1768"]
[BlackElo "1353"]
[Annotator "NA RC COMBH"]
[PlyCount "150"]
[EventDate "2022.05.09"]
[EventType "swiss"]
[EventCountry "IND"]
[SourceTitle "playchess.com"]
[Source "ChessBase"]
[SourceQuality "1"]
[TimeControl "5400+30"]

1. e4 {[%emt 0:01:01]} e6 {[%emt 0:00:25]} 2. d3 {[%emt 0:00:35]} d5 {[%emt 0:00:15]} 3. Nd2 {[%emt 0:00:13]} Nf6 {[%emt 0:00:15]} 4. g3 {[%emt 0:01:09]} dxe4 {[%emt 0:00:09]} 5. dxe4 {[%emt 0:00:11]} Nc6 {[%emt 0:00:08]} 6. Bg2 {[%emt 0:00:24]} Bc5 {[%emt 0:00:10]} 7. Ngf3 {[%emt 0:01:19]} e5 {[%emt 0:00:16]} 8. c3 {[%emt 0:00:29]} a5 {[%emt 0:00:17]} 9. O-O {[%emt 0:01:49]} h6 {[%emt 0:00:09]} 10. h3 {[%emt 0:03:04]} Be6 {[%emt 0:00:51]} 11. Qe2 {[%emt 0:03:59]} Qd7 {[%emt 0:04:56]} 12. Kh2 {[%emt 0:02:25]} Rd8 {[%emt 0:06:27]} 13. Ne1 {[%emt 1:20:22]} g5 {[%emt 0:09:06]} 14. Nb3 {[%emt 0:00:00]} Bb6 {[%emt 0:04:38]} 15. f4 {[%emt 0:00:00]} exf4 {[%emt 0:13:07]} 16. gxf4 {[%emt 0:00:00]} a4 {[%emt 0:01:32]} 17. f5 {[%emt 0:00:00]} Qd6+ {[%emt 0:05:41]} 18. Kh1 {[%emt 0:00:00]} axb3 {[%emt 0:02:17]} 19. fxe6 {[%emt 0:00:00]} Qxe6 {[%emt 0:00:49]} 20. axb3 {[%emt 0:00:00]} Ke7 {[%emt 0:06:21]} 21. Qf3 {[%emt 0:00:00]} Ne5 {[%emt 0:02:26]} 22. Qf5 {[%emt 0:00:00]} Nh5 {[%emt 0:01:42]} 23. Qxe6+ {[%emt 0:00:00]} Kxe6 {[%emt 0:00:14]} 24. Kh2 {[%emt 0:00:00]} Rd1 {[%emt 0:05:10]} 25. Nc2 {[%emt 0:00:00]} Rxf1 {[%emt 0:01:22]} 26. Bxf1 {[%emt 0:00:00]} Rd8 {[%emt 0:01:33]} 27. Be2 {[%emt 0:00:00]} Nf6 {[%emt 0:00:08]} 28. Ra4 {[%emt 0:00:00]} Nd3 {[%emt 0:03:27]} 29. Be3 {[%emt 0:00:00]} Bxe3 {[%emt 0:01:54]} 30. Nxe3 {[%emt 0:00:00]} Nxb2 {[%emt 0:00:02]} 31. Rd4 {[%emt 0:00:00]} Rxd4 {[%emt 0:00:16]} 32. cxd4 {[%emt 0:00:00]} Nxe4 {[%emt 0:00:09]} 33. Bg4+ {[%emt 0:00:00]} Ke7 {[%emt 0:08:40]} 34. Nf5+ {[%emt 0:00:00]} Kf6 {[%emt 0:00:17]} 35. Nxh6 {[%emt 0:00:00]} Nd2 {[%emt 0:01:24]} 36. b4 {[%emt 0:00:00]} Nd3 {[%emt 0:01:34]} 37. Bh5 {[%emt 0:00:59]} b6 {[%emt 0:03:52]} 38. b5 {[%emt 0:02:53]} Nf4 {[%emt 0:01:40]} 39. Bg4 {[%emt 0:01:06]} Nb3 {[%emt 0:00:27]} 40. Ng8+ {[%emt 0:01:49]} Kg7 {[%emt 0:00:21]} 41. Ne7 {[%emt 0:00:09]} Nxd4 {[%emt 0:00:12]} 42. Nf5+ {[%emt 0:00:17]} Nxf5 {[%emt 0:00:03]} 43. Bxf5 {[%emt 0:00:04]} Kf6 {[%emt 0:00:12]} 44. Bd7 {[%emt 0:00:03]} Ke7 {[%emt 0:00:22]} 45. Bc6 {[%emt 0:00:02]} Kd6 {[%emt 0:00:10]} 46. Kg3 {[%emt 0:00:12]} f6 {[%emt 0:01:16]} 47. Kg4 {[%emt 0:02:27]} Ne6 {[%emt 0:02:11]} 48. Bg2 {[%emt 0:04:01]} Ke5 {[%emt 0:01:00]} 49. Bc6 {[%emt 0:00:26]} f5+ {[%emt 0:00:22]} 50. Kg3 {[%emt 0:00:21]} Nd4 {[%emt 0:00:19]} 51. Be8 {[%emt 0:00:32]} Kd5 {[%emt 0:00:13]} 52. h4 {[%emt 0:00:16]} gxh4+ {[%emt 0:00:10]} 53. Kxh4 {[%emt 0:00:02]} f4 {[%emt 0:00:21]} 54. Kh3 {[%emt 0:00:53]} f3 {[%emt 0:00:43]} 55. Kg3 {[%emt 0:00:04]} Ke4 {[%emt 0:00:10]} 56. Kf2 {[%emt 0:00:09]} Kd3 {[%emt 0:00:07]} 57. Bd7 {[%emt 0:00:27]} Kc4 {[%emt 0:00:39]} 58. Ke3 {[%emt 0:00:20]} Nxb5 {[%emt 0:01:27]} 59. Kxf3 {[%emt 0:00:04]} Nd4+ {[%emt 0:00:09]} 60. Ke3 {[%emt 0:00:03]} c5 {[%emt 0:00:08]} 61. Kd2 {[%emt 0:00:05]} b5 {[%emt 0:01:04]} 62. Be8 {[%emt 0:00:10]} Kb3 {[%emt 0:01:07]} 63. Kd3 {[%emt 0:00:23]} Kb4 {[%emt 0:00:31]} 64. Bd7 {[%emt 0:00:52]} Nb3 {[%emt 0:00:31]} 65. Be8 {[%emt 0:01:43]} c4+ {[%emt 0:00:20]} 66. Kc2 {[%emt 0:00:01]} Nd4+ {[%emt 0:00:55]} 67. Kc1 {[%emt 0:00:03]} Kc3 {[%emt 0:00:23]} 68. Bg6 {[%emt 0:00:14]} b4 {[%emt 0:00:07]} 69. Bf7 {[%emt 0:00:38]} Nb3+ {[%emt 0:02:01]} 70. Kb1 {[%emt 0:00:10]} Nd2+ {[%emt 0:00:24]} 71. Ka1 {[%emt 0:00:13]} b3 {[%emt 0:00:14]} 72. Bg6 {[%emt 0:00:04]} b2+ {[%emt 0:00:25]} 73. Ka2 {[%emt 0:00:03]} b1=Q+ {[%emt 0:00:41]} 74. Bxb1 {[%emt 0:00:03]} Nxb1 {[%emt 0:00:02]} 75. Kxb1 {[%emt 0:00:04]} Kd2 {[%emt 0:00:07]} 0-1

[Event "34th MPL National U14G-ch 2022"]
[Site "Ahmedabad"]
[Date "2022.05.14"]
[Round "11.7"]
[White "Falak Joni Naik"]
[Black "Rajanya Datta"]
[Result "1-0"]
[ECO "D02"]
[WhiteElo "1349"]
[BlackElo "1589"]
[Annotator "NA RC COMBH"]
[PlyCount "63"]
[EventDate "2022.05.09"]
[EventType "swiss"]
[EventCountry "IND"]
[SourceTitle "playchess.com"]
[Source "ChessBase"]
[SourceQuality "1"]
[TimeControl "5400+30"]

1. d4 {[%emt 0:01:07]} d5 {[%emt 0:00:24]} 2. Nf3 {[%emt 0:00:11]} e6 {[%emt 0:00:09]} 3. e3 {[%emt 0:00:06]} Bd6 {[%emt 0:00:39]} 4. Bd3 {[%emt 1:31:06]} f5 {[%emt 0:00:09]} 5. b3 {[%emt 0:00:00]} Nf6 {[%emt 0:00:08]} 6. Bb2 {[%emt 0:00:00]} O-O {[%emt 0:00:08]} 7. Nbd2 {[%emt 0:00:00]} c6 {[%emt 0:00:19]} 8. O-O {[%emt 0:00:00]} b6 {[%emt 0:00:49]} 9. Ne5 {[%emt 0:00:00]} Bb7 {[%emt 0:00:37]} 10. f4 {[%emt 0:00:00]} Nbd7 {[%emt 0:01:18]} 11. Ndf3 {[%emt 0:00:00]} Ne4 {[%emt 0:02:30]} 12. Nxd7 {[%emt 0:00:00]} Qxd7 {[%emt 0:00:33]} 13. Ne5 {[%emt 0:00:00]} Qe7 {[%emt 0:00:14]} 14. Rf3 {[%emt 0:00:00]} Ba3 {[%emt 0:04:04]} 15. Bxa3 {[%emt 0:00:00]} Qxa3 {[%emt 0:00:07]} 16. Rh3 {[%emt 0:00:00]} Nf6 {[%emt 0:04:05]} 17. g4 {[%emt 0:00:00]} g6 {[%emt 0:03:29]} 18. g5 {[%emt 0:00:00]} Ne4 {[%emt 0:01:35]} 19. Bxe4 {[%emt 0:00:00]} dxe4 {[%emt 0:00:21]} 20. Nd7 {[%emt 0:00:00]} Rf7 {[%emt 0:00:35]} 21. Nf6+ {[%emt 0:00:00]} Kh8 {[%emt 0:00:14]} 22. d5 {[%emt 0:00:00]} Qb2 {[%emt 0:12:28]} 23. dxe6 {[%emt 0:00:00]} Re7 {[%emt 0:00:09]} 24. Qe1 {[%emt 0:00:00]} h5 {[%emt 0:05:42]} 25. Rd1 {[%emt 0:00:00]} Qxc2 {[%emt 0:07:57]} 26. Rd2 {[%emt 0:00:00]} Qc5 {[%emt 0:01:23]} 27. Qa1 {[%emt 0:00:00]} Rg7 {[%emt 0:00:10]} 28. Rd7 {[%emt 0:00:00]} Qf8 {[%emt 0:01:43]} 29. Rxh5+ {[%emt 0:00:00]} gxh5 {[%emt 0:00:18]} 30. Nxh5 {[%emt 0:00:00]} Kg8 {[%emt 0:00:05]} 31. Rxg7+ {[%emt 0:00:00]} Qxg7 {[%emt 0:00:05]} 32. Qxg7# {[%emt 0:00:00]} 1-0